fUSD/lending_fUSD_20240127
["ID","MTS","AMOUNT","RATE_DAILY","PERIOD"]
[312872328,1706385040514,-631.24,0.00052054,2]
[312872330,1706385040523,-500.0,0.00052054,31]
[312872332,1706385040532,-1314.13,0.00052054,5]
[312872334,1706385040541,-500.0,0.00052054,31]
[312872336,1706385040551,-500.0,0.00052054,31]
[312872338,1706385040560,-500.0,0.00052054,31]
[312872340,1706385040569,-1266.22,0.00052054,5]
[312872342,1706385040579,-1000.0,0.00052054,2]
[312872344,1706385040588,-1000.0,0.000521,2]
[312872346,1706385040598,-331.14,0.000521,14]
[312872348,1706385040606,-1357.83676438,0.00052104,14]
[312872350,1706385040616,-478.38256657,0.0005224,4]
[312872352,1706385040625,-386.0,0.0005229,2]
[312872354,1706385040634,-450.92996774,0.00052328,31]
[312872357,1706385040643,-500.0,0.00052328,31]
[312872358,1706385040653,-500.0,0.00052328,2]
[312872360,1706385040662,-500.0,0.00052328,31]
[312872362,1706385040671,-1000.0,0.00052328,7]
[312872364,1706385040679,-500.0,0.00052328,2]
[312872366,1706385040688,-706.91,0.00052328,31]
[312872368,1706385040697,-500.0,0.00052328,31]
[312872370,1706385040706,-500.0,0.00052328,2]
[312872372,1706385040715,-500.0,0.00052328,31]
[312872374,1706385040724,-500.0,0.00052328,31]
[312872376,1706385040733,-500.0,0.00052328,2]
[312872378,1706385040743,-500.0,0.00052328,31]
[312872380,1706385040752,-500.0,0.00052328,2]
[312872382,1706385040761,-500.0,0.00052328,31]
[312872384,1706385040770,-500.0,0.00052328,31]
[312872386,1706385040779,-500.0,0.00052328,31]
[312872388,1706385040788,-500.0,0.00052328,31]
[312872390,1706385040796,-500.0,0.00052328,31]
[312872392,1706385040806,-500.0,0.00052328,31]
[312872394,1706385040814,-563.9229808,0.00052328,31]
[312872396,1706385040823,-7391.38,0.00052328,31]
[312872398,1706385040832,-663.2,0.00052328,2]
[312872400,1706385040841,-1502.12,0.00052328,31]
[312872402,1706385040851,-972.24,0.00052328,31]
[312872404,1706385040859,-500.0,0.00052328,31]
[312872406,1706385040871,-631.24,0.00052328,2]
[312872408,1706385040880,-500.0,0.00052328,31]
[312872410,1706385040889,-1314.13,0.00052328,5]
[312872412,1706385040898,-500.0,0.00052328,31]
[312872415,1706385040907,-500.0,0.00052328,31]
[312872417,1706385040916,-500.0,0.00052328,31]
[312872419,1706385040925,-1266.22,0.00052328,5]
[312872421,1706385040934,-1000.0,0.00052328,2]
[312872422,1706385040943,-1357.83676438,0.00052473,14]
[312872424,1706385040952,-393.0,0.0005259,2]
[312872426,1706385040961,-500.0,0.00052602,31]
[312872428,1706385040970,-500.0,0.00052602,2]
[312872430,1706385040979,-306.31655103,0.00052602,31]
[312872433,1706385040989,-1000.0,0.00052602,7]
[312872434,1706385040998,-500.0,0.00052602,2]
[312872436,1706385041007,-706.91,0.00052602,31]
[312872438,1706385041016,-500.0,0.00052602,31]
[312872441,1706385041025,-500.0,0.00052602,2]
[312872443,1706385041034,-330.92622321,0.00052602,31]
[312872445,1706385041044,-500.0,0.00052602,31]
[312872447,1706385041053,-500.0,0.00052602,2]
[312872449,1706385041062,-500.0,0.00052602,31]
[312872451,1706385041070,-500.0,0.00052602,2]
[312872453,1706385041079,-500.0,0.00052602,31]
[312872454,1706385041089,-500.0,0.00052602,31]
[312872456,1706385041097,-500.0,0.00052602,31]
[312872458,1706385041106,-500.0,0.00052602,31]
[312872460,1706385041115,-500.0,0.00052602,31]
[312872462,1706385041124,-500.0,0.00052602,31]
[312872464,1706385041133,-7391.38,0.00052602,31]
[312872466,1706385041142,-663.2,0.00052602,2]
[312872468,1706385041150,-1502.12,0.00052602,31]
[312872470,1706385041159,-972.24,0.00052602,31]
[312872472,1706385041168,-500.0,0.00052602,31]
[312872474,1706385041177,-631.24,0.00052602,2]
[312872476,1706385041186,-500.0,0.00052602,31]
[312872478,1706385041195,-1314.13,0.00052602,5]
[312872492,1706385041314,-500.0,0.00052602,31]
[312872494,1706385041323,-600.7117784,0.00052602,31]
[312872496,1706385041332,-500.0,0.00052602,31]
[312872498,1706385041342,-1266.22,0.00052602,5]
[312872500,1706385041351,-1000.0,0.00052602,2]
[312872502,1706385041360,-150.83,0.00052638,2]
[312872504,1706385041369,-1197.91955019,0.00052643,13]
[312872506,1706385041379,-786.0,0.0005269,2]
[312872508,1706385041388,-10569.71535694,0.00052773,2]
[312872510,1706385041397,-346.0,0.0005279,2]
[312872512,1706385041406,-194.25,0.000528,7]
[312872514,1706385041414,-1357.83676438,0.00052842,14]
[312872516,1706385041423,-500.0,0.00052876,31]
[312872519,1706385041433,-500.0,0.00052876,2]
[312872520,1706385041442,-1000.0,0.00052876,7]
[312872522,1706385041452,-500.0,0.00052876,2]
[312872524,1706385041461,-706.91,0.00052876,31]
[312872526,1706385041469,-500.0,0.00052876,31]
[312872528,1706385041478,-500.0,0.00052876,2]
[312872530,1706385041487,-500.0,0.00052876,31]
[312872532,1706385041497,-500.0,0.00052876,2]
[312872535,1706385041506,-500.0,0.00052876,31]
[312872537,1706385041515,-500.0,0.00052876,2]
[312872539,1706385041524,-500.0,0.00052876,31]
[312872541,1706385041534,-500.0,0.00052876,31]
[312872542,1706385041543,-500.0,0.00052876,31]
[312872545,1706385041553,-355.03258635,0.00052876,31]
[312872547,1706385041561,-500.0,0.00052876,31]
[312872548,1706385041571,-500.0,0.00052876,31]
[312872551,1706385041583,-7391.38,0.00052876,31]
[312872552,1706385041593,-663.2,0.00052876,2]
[312872555,1706385041602,-1502.12,0.00052876,31]
[312872556,1706385041611,-972.24,0.00052876,31]
[312872559,1706385041621,-195.18,0.00052876,31]
[312872561,1706385041630,-631.24,0.00052876,2]
[312872563,1706385041639,-500.0,0.00052876,31]
[312872565,1706385041648,-1314.13,0.00052876,5]
[312872567,1706385041658,-500.0,0.00052876,31]
[312872568,1706385041668,-500.0,0.00052876,31]
[312872570,1706385041677,-1266.22,0.00052876,5]
[312872573,1706385041687,-1000.0,0.00052876,2]
[312872574,1706385041696,-331.14,0.000529,14]
[312872577,1706385041705,-160.08843524,0.00052954,2]
[312872579,1706385041715,-480.0,0.0005307,2]
[312872581,1706385041724,-312.0,0.0005309,2]
[312872582,1706385041733,-500.0,0.0005315,31]
[312872584,1706385041742,-500.0,0.0005315,2]
[312872585,1706385041751,-1000.0,0.0005315,7]
[312872586,1706385041759,-500.0,0.0005315,2]
[312872587,1706385041768,-706.91,0.0005315,31]
[312872588,1706385041776,-500.0,0.0005315,31]
[312872589,1706385041785,-500.0,0.0005315,2]
[312872590,1706385041794,-500.0,0.0005315,31]
[312872591,1706385041803,-500.0,0.0005315,2]
[312872593,1706385041813,-500.0,0.0005315,31]
[312872595,1706385041822,-500.0,0.0005315,2]
[312872597,1706385041831,-500.0,0.0005315,31]
[312872599,1706385041840,-500.0,0.0005315,31]
[312872601,1706385041849,-500.0,0.0005315,31]
[312872603,1706385041858,-500.0,0.0005315,31]
[312872605,1706385041867,-500.0,0.0005315,31]
[312872607,1706385041876,-7391.38,0.0005315,31]
[312872609,1706385041885,-663.2,0.0005315,2]
[312872611,1706385041894,-1502.12,0.0005315,31]
[312872613,1706385041903,-972.24,0.0005315,31]
[312872615,1706385041912,-631.24,0.0005315,2]
[312872617,1706385041922,-500.0,0.0005315,31]
[312872619,1706385041931,-1314.13,0.0005315,5]
[312872621,1706385041940,-500.0,0.0005315,31]
[312872623,1706385041949,-500.0,0.0005315,31]
[312872625,1706385041958,-1266.22,0.0005315,5]
[312872627,1706385041970,-1000.0,0.0005315,2]
[312872629,1706385041979,-155.0,0.00053201,15]
[312872632,1706385041989,-1357.83676438,0.00053211,14]
[312872634,1706385041998,-271.0,0.0005339,2]
[312872636,1706385042007,-640.80583073,0.00053424,31]
[312872637,1706385042016,-500.0,0.00053424,5]
[312872639,1706385042025,-500.0,0.00053424,2]
[312872641,1706385042034,-1000.0,0.00053424,7]
[312872643,1706385042043,-500.0,0.00053424,2]
[312872645,1706385042052,-706.91,0.00053424,31]
[312872647,1706385042061,-500.0,0.00053424,31]
[312872649,1706385042069,-500.0,0.00053424,2]
[312872651,1706385042078,-500.0,0.00053424,31]
[312872653,1706385042087,-500.0,0.00053424,2]
[312872655,1706385042097,-500.0,0.00053424,31]
[312872657,1706385042106,-500.0,0.00053424,2]
[312872659,1706385042115,-500.0,0.00053424,31]
[312872661,1706385042124,-500.0,0.00053424,31]
[312872663,1706385042132,-500.0,0.00053424,31]
[312872665,1706385042141,-500.0,0.00053424,31]
[312872667,1706385042150,-500.0,0.00053424,31]
[312872669,1706385042159,-7391.38,0.00053424,31]
[312872671,1706385042168,-663.2,0.00053424,2]
[312872673,1706385042177,-1502.12,0.00053424,31]
[312872675,1706385042186,-972.24,0.00053424,31]
[312872677,1706385042195,-631.24,0.00053424,2]
[312872679,1706385042204,-500.0,0.00053424,31]
[312872681,1706385042213,-1314.13,0.00053424,5]
[312872683,1706385042222,-500.0,0.00053424,31]
[312872684,1706385042231,-500.0,0.00053424,31]
[312872685,1706385042240,-1266.22,0.00053424,5]
[312872686,1706385042250,-1000.0,0.00053424,2]
[312872687,1706385042260,-3980.57066427,0.00053555,14]
[312872688,1706385042269,-1357.83676438,0.00053579,14]
[312872689,1706385042279,-270.0,0.0005359,2]
[312872690,1706385042288,-500.0,0.00053698,2]
[312872691,1706385042297,-1000.0,0.00053698,7]
[312872692,1706385042308,-500.0,0.00053698,2]
[312872693,1706385042317,-706.91,0.00053698,31]
[312872694,1706385042326,-500.0,0.00053698,31]
[312872695,1706385042335,-500.0,0.00053698,2]
[312872696,1706385042344,-500.0,0.00053698,31]
[312872697,1706385042353,-500.0,0.00053698,2]
[312872698,1706385042362,-500.0,0.00053698,31]
[312872699,1706385042371,-500.0,0.00053698,2]
[312872700,1706385042380,-500.0,0.00053698,31]
[312872701,1706385042389,-500.0,0.00053698,31]
[312872702,1706385042398,-500.0,0.00053698,31]
[312872703,1706385042408,-500.0,0.00053698,31]
[312872704,1706385042416,-500.0,0.00053698,31]
[312872705,1706385042425,-7391.38,0.00053698,31]
[312872706,1706385042434,-663.2,0.00053698,2]
[312872707,1706385042444,-1502.12,0.00053698,31]
[312872708,1706385042454,-972.24,0.00053698,31]
[312872709,1706385042463,-631.24,0.00053698,2]
[312872710,1706385042472,-500.0,0.00053698,31]
[312872711,1706385042481,-1314.13,0.00053698,5]
[312872712,1706385042491,-500.0,0.00053698,31]
[312872713,1706385042499,-500.0,0.00053698,31]
[312872714,1706385042509,-1266.22,0.00053698,5]
[312872715,1706385042518,-1000.0,0.00053698,2]
[312872716,1706385042527,-150.0,0.0005373,2]
[312872717,1706385042536,-270.0,0.0005389,2]
[312872718,1706385042545,-1357.83676438,0.00053948,30]
[312872719,1706385042554,-500.0,0.00053972,2]
[312872720,1706385042564,-676.21,0.00053972,7]
[312872721,1706385042573,-500.0,0.00053972,2]
[312872722,1706385042585,-706.91,0.00053972,31]
[312872723,1706385042594,-302.71233225,0.00053972,31]
[312872724,1706385042603,-500.0,0.00053972,2]
[312872725,1706385042612,-500.0,0.00053972,31]
[312872726,1706385042622,-500.0,0.00053972,2]
[312872727,1706385042631,-500.0,0.00053972,31]
[312872728,1706385042640,-500.0,0.00053972,2]
[312872729,1706385042650,-500.0,0.00053972,31]
[312872730,1706385042660,-500.0,0.00053972,31]
[312872731,1706385042670,-500.0,0.00053972,31]
[312872732,1706385042679,-500.0,0.00053972,31]
[312872733,1706385042688,-500.0,0.00053972,31]
[312872734,1706385042697,-7391.38,0.00053972,31]
[312872735,1706385042706,-663.2,0.00053972,2]
[312872736,1706385042716,-1502.12,0.00053972,31]
[312872737,1706385042725,-972.24,0.00053972,31]
[312872738,1706385042734,-631.24,0.00053972,2]
[312872739,1706385042743,-500.0,0.00053972,31]
[312872740,1706385042753,-1314.13,0.00053972,5]
[312872741,1706385042761,-500.0,0.00053972,31]
[312872742,1706385042771,-500.0,0.00053972,31]
[312872743,1706385042780,-1266.22,0.00053972,5]
[312872744,1706385042790,-1000.0,0.00053972,2]
[312872745,1706385042799,-394.0,0.0005399,2]
[312872746,1706385042808,-5000.0,0.00054,2]
[312872747,1706385042817,-194.25,0.00054,7]
[312872748,1706385042826,-200.0,0.00054,21]
[312872749,1706385042834,-331.14,0.00054,14]
[312872750,1706385042843,-151.0,0.00054,120]
[312872751,1706385042853,-269.0,0.0005419,2]
[312872752,1706385042863,-581.224863,0.0005422,22]
[312872753,1706385042872,-500.0,0.0005424,22]
[312872754,1706385042881,-500.0,0.00054246,2]
[312872755,1706385042889,-500.0,0.00054246,2]
[312872756,1706385042898,-706.91,0.00054246,31]
[312872757,1706385042907,-500.0,0.00054246,2]
[312872758,1706385042916,-613.29706015,0.00054246,31]
[312872759,1706385042926,-500.0,0.00054246,2]
[312872760,1706385042935,-500.0,0.00054246,31]
[312872761,1706385042944,-500.0,0.00054246,2]
[312872762,1706385042953,-500.0,0.00054246,31]
[312872763,1706385042962,-364.40898193,0.00054246,31]
[312872764,1706385042971,-500.0,0.00054246,31]
[312872765,1706385042981,-500.0,0.00054246,31]
[312872766,1706385042990,-500.0,0.00054246,31]
[312872767,1706385042999,-7391.38,0.00054246,31]
[312872768,1706385043009,-663.2,0.00054246,2]
[312872769,1706385043018,-1502.12,0.00054246,31]
[312872771,1706385043028,-972.24,0.00054246,31]
[312872772,1706385043037,-631.24,0.00054246,2]
[312872773,1706385043046,-500.0,0.00054246,31]
[312872774,1706385043056,-1314.13,0.00054246,5]
[312872775,1706385043065,-500.0,0.00054246,31]
[312872776,1706385043074,-500.0,0.00054246,31]
[312872777,1706385043083,-1266.22,0.00054246,5]
[312872778,1706385043092,-557.11024875,0.00054246,2]
[312872779,1706385043102,-500.0,0.0005426,22]
[312872780,1706385043112,-500.0,0.0005428,22]
[312872781,1706385043120,-500.0,0.000543,22]
[312872782,1706385043130,-1357.83676438,0.00054317,30]
[312872784,1706385043139,-500.0,0.0005432,22]
[312872786,1706385043148,-520.0,0.00054327,2]
[312872788,1706385043157,-500.0,0.0005434,22]
[312872790,1706385043166,-500.0,0.0005436,22]
[312872792,1706385043175,-500.0,0.0005438,22]
[312872794,1706385043184,-500.0,0.000544,22]
[312872796,1706385043194,-500.0,0.0005442,22]
[312872798,1706385043204,-500.0,0.0005444,22]
[312872800,1706385043213,-500.0,0.0005446,23]
[312872802,1706385043223,-500.0,0.0005448,23]
[312872804,1706385043232,-302.0,0.0005449,2]
[312872806,1706385043241,-500.0,0.000545,23]
[312872808,1706385043251,-151.0,0.000545,120]
[312872810,1706385043260,-1197.91955019,0.00054507,15]
[312872812,1706385043269,-500.0,0.0005452,2]
[312872814,1706385043279,-500.0,0.0005452,2]
[312872816,1706385043289,-706.91,0.0005452,120]
[312872817,1706385043298,-500.0,0.0005452,2]
[312872818,1706385043307,-500.0,0.0005452,2]
[312872819,1706385043316,-500.0,0.0005452,120]
[312872820,1706385043326,-500.0,0.0005452,2]
[312872821,1706385043334,-489.40394082,0.0005452,120]
[312872822,1706385043344,-500.0,0.0005452,120]
[312872823,1706385043353,-500.0,0.0005452,120]
[312872824,1706385043363,-500.0,0.0005452,120]
[312872825,1706385043371,-500.0,0.0005452,23]
[312872826,1706385043380,-7391.38,0.0005452,120]
[312872827,1706385043389,-663.2,0.0005452,2]
[312872828,1706385043399,-1502.12,0.0005452,120]
[312872829,1706385043408,-972.24,0.0005452,120]
[312872830,1706385043417,-631.24,0.0005452,2]
[312872831,1706385043426,-500.0,0.0005452,120]
[312872832,1706385043435,-1314.13,0.0005452,5]
[312872833,1706385043444,-500.0,0.0005452,120]
[312872834,1706385043453,-248.65180911,0.0005452,120]
[312872835,1706385043462,-1266.22,0.0005452,5]
[312872836,1706385043471,-500.0,0.0005454,23]
[312872837,1706385043480,-457.13,0.00054549,2]
[312872838,1706385043489,-500.0,0.0005456,23]
[312872839,1706385043498,-500.0,0.0005458,23]
[312872840,1706385043508,-500.0,0.000546,23]
[312872841,1706385043517,-500.0,0.0005462,23]
[312872842,1706385043526,-500.0,0.0005464,23]
[312872843,1706385043535,-206.0,0.0005464,20]
[312872844,1706385043544,-500.0,0.0005466,23]
[312872845,1706385043553,-500.0,0.0005468,23]
[312872847,1706385043564,-1357.83676438,0.00054686,30]
[312872848,1706385043574,-268.0,0.0005469,2]
[312872849,1706385043584,-150.0,0.000547,32]
[312872850,1706385043593,-500.0,0.000547,23]
[312872851,1706385043604,-500.0,0.00054794,2]
[312872852,1706385043613,-500.0,0.00054794,2]
[312872854,1706385043622,-706.91,0.00054794,120]
[312872855,1706385043631,-500.0,0.00054794,2]
[312872856,1706385043640,-500.0,0.00054794,2]
[312872857,1706385043649,-256.0125752,0.00054794,120]
[312872858,1706385043659,-500.0,0.00054794,2]
[312872859,1706385043668,-500.0,0.00054794,120]
[312872860,1706385043678,-500.0,0.00054794,120]
[312872861,1706385043687,-500.0,0.00054794,120]
[312872862,1706385043696,-7391.38,0.00054794,120]
[312872863,1706385043705,-663.2,0.00054794,2]
[312872864,1706385043714,-1502.12,0.00054794,120]
[312872865,1706385043724,-972.24,0.00054794,120]
[312872866,1706385043733,-631.24,0.00054794,2]
[312872867,1706385043743,-500.0,0.00054794,120]
[312872868,1706385043753,-1314.13,0.00054794,5]
[312872869,1706385043762,-588.95684625,0.00054794,120]
[312872870,1706385043771,-1266.22,0.00054794,5]
[312872871,1706385043781,-1000.0,0.000548,2]
[312872872,1706385043790,-8000.0,0.000548,120]
[312872873,1706385043800,-2000.0,0.000548,30]
[312872874,1706385043809,-160.08843524,0.000549,2]
[312872875,1706385043818,-248.0,0.0005499,2]
[312872876,1706385043827,-158.51638878,0.00055,2]
[312872877,1706385043836,-15000.0,0.00055,120]
[312872878,1706385043846,-349867.92172811,0.00055,120]
[312872879,1706385043863,-94132.07827189,0.00055,120]
[312872880,1706385043872,-7474.0,0.00055,30]
[312872881,1706385043881,-194.25,0.00055,30]
[312872882,1706385043890,-331.14,0.00055,14]
[312872883,1706385043899,-153500.77048665,0.00055,120]
[312872884,1706385043910,-27118.28048522,0.00055,120]
[312872885,1706385043957,-155.0,0.00030086,2]
[312872886,1706385043966,-311.56754251,0.00052054,2]
[312872887,1706385043978,-188.43245749,0.00052054,2]
[312872888,1706385043987,-500.0,0.00052328,2]
[312872889,1706385043996,-500.0,0.00052602,2]
[312872890,1706385044005,-500.0,0.00052876,2]
[312872891,1706385044014,-446.34330366,0.0005315,2]
[312872892,1706385044023,-8724.05439088,0.00055,120]
[312872893,1706385046522,-870.05,0.00054236,10]
[312872894,1706385046532,-269.05,0.00055,25]
[312872895,1706385046544,-1146.95,0.00055,25]
[312872896,1706385046553,-310656.89463725,0.00055,120]
[312872897,1706385046562,-151.0,0.00055,120]
[312872898,1706385046572,-1357.83676438,0.00055055,30]
[312872899,1706385046584,-500.0,0.00055068,2]
[312872900,1706385046593,-500.0,0.00055068,2]
[312872901,1706385046603,-706.91,0.00055068,120]
[312872902,1706385046613,-500.0,0.00055068,2]
[312872903,1706385046623,-500.0,0.00055068,2]
[312872904,1706385046632,-235.51701138,0.00055068,2]
[312872905,1706385046641,-500.0,0.00055068,120]
[312872906,1706385046651,-500.0,0.00055068,120]
[312872907,1706385046660,-500.0,0.00055068,120]
[312872908,1706385046670,-7391.38,0.00055068,120]
[312872910,1706385046679,-663.2,0.00055068,2]
[312872914,1706385046688,-1502.12,0.00055068,120]
[312872917,1706385046699,-972.24,0.00055068,120]
[312872919,1706385046708,-631.24,0.00055068,2]
[312872920,1706385046716,-500.0,0.00055068,120]
[312872921,1706385046725,-1314.13,0.00055068,5]
[312872922,1706385046735,-1266.22,0.00055068,5]
[312872923,1706385046745,-179.56929181,0.00055205,120]
[312872924,1706385046754,-246.449836,0.00055246,120]
[312872925,1706385046763,-300.0,0.000553,30]
[312872926,1706385046772,-500.0,0.00055342,2]
[312872927,1706385046781,-500.0,0.00055342,2]
[312872928,1706385046790,-706.91,0.00055342,120]
[312872929,1706385046800,-500.0,0.00055342,2]
[312872930,1706385046809,-500.0,0.00055342,2]
[312872931,1706385046818,-500.0,0.00055342,120]
[312872932,1706385046827,-500.0,0.00055342,120]
[312872933,1706385046836,-500.0,0.00055342,120]
[312872934,1706385046844,-7391.38,0.00055342,120]
[312872935,1706385046854,-663.2,0.00055342,2]
[312872936,1706385046863,-1502.12,0.00055342,120]
[312872937,1706385046872,-972.24,0.00055342,120]
[312872938,1706385046881,-631.24,0.00055342,2]
[312872939,1706385046891,-500.0,0.00055342,120]
[312872940,1706385046901,-1314.13,0.00055342,5]
[312872941,1706385046910,-1266.22,0.00055342,5]
[312872942,1706385046919,-200.0,0.00055359,120]
[312872943,1706385046927,-150.0,0.0005538,4]
[312872944,1706385046936,-1357.83676438,0.00055424,30]
[312872945,1706385046945,-151.0,0.000555,120]
[312872946,1706385046954,-236.0,0.0005559,2]
[312872947,1706385046963,-1989.0,0.00055603,30]
[312872948,1706385046972,-408.0,0.00055603,30]
[312872949,1706385046981,-576.4933636,0.00055616,2]
[312872950,1706385046990,-500.0,0.00055616,2]
[312872951,1706385046999,-706.91,0.00055616,120]
[312872952,1706385047008,-500.0,0.00055616,2]
[312872953,1706385047017,-500.0,0.00055616,2]
[312872954,1706385047026,-500.0,0.00055616,120]
[312872955,1706385047035,-500.0,0.00055616,120]
[312872956,1706385047043,-500.0,0.00055616,120]
[312872957,1706385047052,-7391.38,0.00055616,120]
[312872958,1706385047061,-663.2,0.00055616,2]
[312872959,1706385047070,-1502.12,0.00055616,120]
[312872960,1706385047079,-972.24,0.00055616,120]
[312872961,1706385047088,-631.24,0.00055616,2]
[312872962,1706385047097,-500.0,0.00055616,120]
[312872963,1706385047106,-1314.13,0.00055616,5]
[312872964,1706385047115,-1266.22,0.00055616,5]
[312872965,1706385047123,-150.83,0.0005571,2]
[312872966,1706385047132,-257.0,0.0005579,2]
[312872967,1706385047142,-1357.83676438,0.00055793,30]
[312872968,1706385047150,-1022.67973073,0.0005586,5]
[312872969,1706385047159,-864.43443322,0.0005586,2]
[312872970,1706385047168,-500.0,0.0005589,2]
[312872971,1706385047176,-706.91,0.0005589,120]
[312872972,1706385047185,-500.0,0.0005589,2]
[312872973,1706385047194,-500.0,0.0005589,2]
[312872974,1706385047203,-500.0,0.0005589,120]
[312872975,1706385047212,-500.0,0.0005589,120]
[312872976,1706385047221,-500.0,0.0005589,120]
[312872977,1706385047230,-7391.38,0.0005589,120]
[312872978,1706385047239,-663.2,0.0005589,2]
[312872979,1706385047249,-1502.12,0.0005589,120]
[312872980,1706385047259,-972.24,0.0005589,120]
[312872981,1706385047268,-631.24,0.0005589,2]
[312872982,1706385047277,-500.0,0.0005589,120]
[312872983,1706385047286,-1314.13,0.0005589,5]
[312872984,1706385047295,-1266.22,0.0005589,5]
[312872985,1706385047304,-179.56929183,0.0005589,120]
[312872986,1706385047313,-179.56929181,0.0005589,120]
[312872987,1706385047322,-179.56929181,0.0005589,120]
[312872988,1706385047331,-500.0,0.00055894,120]
[312872989,1706385047340,-194.25,0.000559,30]
[312872990,1706385047349,-170.6052538,0.00055997,2]
[312872991,1706385047358,-146412.69193978,0.00056,120]
[312872992,1706385047372,-1344.92915141,0.00056,120]
[312872997,1706385103284,455.1737926,0.000262,11]
[312873007,1706385203130,1433.6424514,0.00022078,2]
[312873008,1706385208757,2760.3747804,0.000248,9]
[312873009,1706385210874,155.0,0.00022997,7]
[312873010,1706385224883,155.0,0.00022998,7]
[312873011,1706385238743,881.0,0.00021873,2]
[312873012,1706385240889,159.15292549,0.00022998,7]
[312873019,1706385320401,171.02,0.00020437,2]
[312873020,1706385336496,165.22,0.00025271,120]
[312873022,1706385513676,2473.25420639,0.00022211,2]
[312873023,1706385527699,659.14,0.00022415,2]
[312873024,1706385566900,3845.70347577,0.00021753,7]
[312873025,1706385572788,176.61,0.00022,2]
[312873027,1706385620948,155.0,0.00022898,7]
[312873028,1706385638951,155.0,0.00022898,7]
[312873029,1706385673922,150.0,0.00022348,2]
[312873033,1706385716929,1464.59,0.00021911,2]
[312873037,1706385773007,1882.3,0.00021921,2]
[312873039,1706385792958,200.0,0.00021909,2]
[312873041,1706385813315,177.79813522,0.00022413,2]
[312873042,1706385814663,2000.0,0.00021909,2]
[312873044,1706385821897,-502.3142963,0.00022512,2]
[312873045,1706385821917,-97.6857037,0.00022512,2]
[312873046,1706385829725,1636.68384112,0.00021753,2]
[312873048,1706385842608,2705.0,0.00021899,2]
[312873050,1706385859489,500.0,0.0002188,2]
[312873051,1706385862924,1099.06361557,0.00021753,2]
[312873052,1706385865542,421.11065095,0.00021982,2]
[312873054,1706385875308,418.22582824,0.00020379,2]
[312873055,1706385877686,176.78,0.00021862,2]
[312873057,1706385893512,250.0,0.0002188,2]
[312873063,1706385989620,250.0,0.00021918,2]
[312873064,1706385990362,-159.09532459,0.00022506,2]
[312873065,1706385990382,-174.64502428,0.00022506,2]
[312873066,1706385990402,-266.25965113,0.00022506,2]
[312873067,1706385994885,23900.0,0.00021787,2]
[312873069,1706386015410,646.27,0.00019831,2]
[312873070,1706386015623,646.27,0.00022095,2]
[312873071,1706386037610,730.23,0.00021729,2]
[312873072,1706386042099,-154.68847404,0.000225,2]
[312873073,1706386045859,228.74402577,0.00022499,2]
[312873074,1706386047306,4006.73882145,0.00022499,2]